[Event "Niedersachsen-ch A 2024"]
[Site "Verden Aller"]
[Date "2024.01.07"]
[Round "7.21"]
[White "Gottschalk, Siegfried"]
[Black "Hoke, Joshua"]
[Result "1/2-1/2"]
[ECO "D36"]
[WhiteElo "1939"]
[BlackElo "1600"]
[Annotator "RC"]
[PlyCount "103"]
[EventDate "2024.01.01"]
[EventType "swiss"]
[EventCountry "GER"]
[SourceTitle "playchess.com"]
[Source "ChessBase"]
[SourceQuality "1"]
[TimeControl "40/5400+30:1800+30"]

1. c4 {[%emt 0:00:02]} Nf6 {[%emt 0:00:15]} 2. Nc3 {[%emt 0:00:19]} e6 {[%emt 0:00:54]} 3. d4 {[%emt 0:00:12]} d5 {[%emt 0:00:08]} 4. cxd5 {[%emt 0:00:10]} exd5 {[%emt 0:00:07]} 5. Bg5 {[%emt 0:00:06]} Be7 {[%emt 0:01:16]} 6. e3 {[%emt 0:00:06]} Nbd7 {[%emt 0:00:42]} 7. Bd3 {[%emt 0:00:32]} O-O {[%emt 0:00:24]} 8. Qc2 {[%emt 0:00:11]} c6 {[%emt 0:00:34]} 9. Nge2 {[%emt 0:01:07]} Re8 {[%emt 0:02:32]} 10. O-O {[%emt 0:00:53]} Ne4 {[%emt 0:08:50]} 11. Bf4 {[%emt 0:10:10]} Nxc3 {[%emt 0:05:46]} 12. Nxc3 {[%emt 0:11:22]} Nf8 {[%emt 0:01:58]} 13. a3 {[%emt 0:02:12]} Bd6 {[%emt 0:03:47]} 14. Bxd6 {[%emt 0:00:51]} Qxd6 {[%emt 0:00:08]} 15. b4 {[%emt 0:00:21]} a6 {[%emt 0:03:28]} 16. Qb3 {[%emt 0:05:26]} Re6 {[%emt 0:02:29]} 17. Ne2 {[%emt 0:06:47]} Rh6 {[%emt 0:07:00]} 18. Ng3 {[%emt 0:02:43]} Bd7 {[%emt 0:03:02]} 19. Qc2 {[%emt 0:10:23]} g6 {[%emt 0:11:22]} 20. Qd2 {[%emt 0:05:20]} Kg7 {[%emt 0:01:46]} 21. e4 {[%emt 0:05:26]} dxe4 {[%emt 0:03:00]} 22. Bxe4 {[%emt 0:00:33]} Re8 {[%emt 0:02:15]} 23. f4 {[%emt 0:07:23]} Rh4 {[%emt 0:15:05]} 24. Qf2 {[%emt 0:13:36]} Qf6 {[%emt 0:05:10]} 25. d5 {[%emt 0:01:50]} cxd5 {[%emt 0:02:16]} 26. Bxd5 {[%emt 0:00:12]} Bb5 {[%emt 0:00:10]} 27. Ne4 {[%emt 0:06:11]} Rxe4 {[%emt 0:03:26]} 28. Bxe4 {[%emt 0:00:13]} Bxf1 {[%emt 0:00:17]} 29. Rxf1 {[%emt 0:00:11]} b6 {[%emt 0:03:46]} 30. g3 {[%emt 0:01:13]} Rh5 {[%emt 0:00:51]} 31. Bf3 {[%emt 0:03:58]} Rf5 {[%emt 0:01:17]} 32. Bb7 {[%emt 0:00:21]} a5 {[%emt 0:02:10]} 33. g4 {[%emt 0:01:18]} Rb5 {[%emt 0:00:11]} 34. Qe2 {[%emt 0:00:20]} Qd4+ {[%emt 0:00:59]} 35. Kg2 {[%emt 0:00:11]} Qd7 {[%emt 0:01:16]} 36. Qe4 {[%emt 0:00:37]} Qxg4+ {[%emt 0:00:19]} 37. Kh1 {[%emt 0:00:33]} Qe6 {[%emt 0:03:21]} 38. Bc6 {[%emt 0:02:24]} Rf5 {[%emt 0:01:32]} 39. Qd4+ {[%emt 0:01:04]} Qf6 {[%emt 0:00:09]} 40. Qxb6 {[%emt 0:02:09]} axb4 {[%emt 0:00:11]} 41. axb4 {[%emt 0:30:24]} Rxf4 {[%emt 0:30:29]} 42. Rxf4 {[%emt 0:01:25]} Qxf4 {[%emt 0:00:05]} 43. b5 {[%emt 0:00:40]} Ne6 {[%emt 0:00:39]} 44. Kg2 {[%emt 0:00:00]} Qg4+ {[%emt 0:00:00]} 45. Kf1 {[%emt 0:00:00]} Qd1+ {[%emt 0:00:00]} 46. Kf2 {[%emt 0:00:00]} Qd4+ {[%emt 0:00:00]} 47. Qxd4+ {[%emt 0:00:00]} Nxd4 {[%emt 0:00:00]} 48. Ke3 {[%emt 0:00:00]} Nxb5 {[%emt 0:00:00]} 49. Bxb5 {[%emt 0:00:00]} f5 {[%emt 0:00:00]} 50. Kf3 {[%emt 0:00:00]} Kf6 {[%emt 0:00:00]} 51. h4 {[%emt 0:00:00]} h6 {[%emt 0:00:00]} 52. Kf4 {[%emt 0:00:00]} 1/2-1/2

[Event "Niedersachsen-ch A 2024"]
[Site "Verden Aller"]
[Date "2024.01.07"]
[Round "7.22"]
[White "Hesse, Juergen"]
[Black "Stein, Luis"]
[Result "1/2-1/2"]
[ECO "B13"]
[WhiteElo "1931"]
[BlackElo "1762"]
[Annotator "NA RC"]
[PlyCount "40"]
[EventDate "2024.01.01"]
[EventType "swiss"]
[EventCountry "GER"]
[SourceTitle "playchess.com"]
[Source "ChessBase"]
[SourceQuality "1"]
[TimeControl "40/5400+30:1800+30"]

1. e4 {[%emt 0:00:05]} c6 {[%emt 0:00:02]} 2. d4 {[%emt 0:00:32]} d5 {[%emt 0:00:03]} 3. exd5 {[%emt 0:00:25]} cxd5 {[%emt 0:00:06]} 4. Bd3 {[%emt 0:00:24]} Nc6 {[%emt 0:00:13]} 5. c3 {[%emt 0:00:28]} Nf6 {[%emt 0:00:07]} 6. Bf4 {[%emt 0:00:49]} g6 {[%emt 0:00:32]} 7. Nf3 {[%emt 0:02:46]} Bf5 {[%emt 0:03:37]} 8. Bxf5 {[%emt 0:03:00]} gxf5 {[%emt 0:00:05]} 9. O-O {[%emt 0:01:55]} e6 {[%emt 0:01:19]} 10. Nbd2 {[%emt 0:04:47]} Bd6 {[%emt 0:06:41]} 11. Bxd6 {[%emt 0:04:28]} Qxd6 {[%emt 0:00:23]} 12. Re1 {[%emt 0:03:22]} Ne4 {[%emt 0:05:52]} 13. Ne5 {[%emt 0:03:48]} Nxe5 {[%emt 0:01:46]} 14. dxe5 {[%emt 0:00:27]} Qc5 {[%emt 0:11:48]} 15. Qe2 {[%emt 0:05:20]} Nxd2 {[%emt 0:08:36]} 16. Qxd2 {[%emt 0:03:30]} O-O-O {[%emt 0:20:43]} 17. Rad1 {[%emt 0:06:20]} Rhg8 {[%emt 0:00:33]} 18. Qd4 {[%emt 0:02:23]} Qc6 {[%emt 0:10:51]} 19. f3 {[%emt 0:10:57]} Kb8 {[%emt 0:02:36]} 20. Rd2 {[%emt 0:03:07]} Rc8 {[%emt 0:01:26]} 1/2-1/2

[Event "Niedersachsen-ch A 2024"]
[Site "Verden Aller"]
[Date "2024.01.07"]
[Round "7.23"]
[White "Kieselbach, Marvin"]
[Black "Wilmink, Anna"]
[Result "1/2-1/2"]
[ECO "E05"]
[WhiteElo "1926"]
[BlackElo "1822"]
[Annotator "RC"]
[PlyCount "44"]
[EventDate "2024.01.01"]
[EventType "swiss"]
[EventCountry "GER"]
[SourceTitle "playchess.com"]
[Source "ChessBase"]
[SourceQuality "1"]
[TimeControl "40/5400+30:1800+30"]

1. d4 {[%emt 0:00:12]} Nf6 {[%emt 0:00:11]} 2. Nf3 {[%emt 0:00:09]} d5 {[%emt 0:00:11]} 3. c4 {[%emt 0:00:06]} e6 {[%emt 0:00:15]} 4. g3 {[%emt 0:00:27]} dxc4 {[%emt 0:01:32]} 5. Bg2 {[%emt 0:00:09]} Nbd7 {[%emt 0:01:21]} 6. O-O {[%emt 0:01:19]} Be7 {[%emt 0:01:26]} 7. Qc2 {[%emt 0:01:55]} a6 {[%emt 0:01:03]} 8. a4 {[%emt 0:01:28]} O-O {[%emt 0:02:10]} 9. Rd1 {[%emt 0:09:13]} Rb8 {[%emt 0:04:40]} 10. Ne5 {[%emt 0:33:44]} Nd5 {[%emt 0:16:10]} 11. Nxc4 {[%emt 0:01:15]} Nb4 {[%emt 0:03:56]} 12. Qc3 {[%emt 0:01:26]} b5 {[%emt 0:06:03]} 13. axb5 {[%emt 0:03:48]} axb5 {[%emt 0:02:06]} 14. Na5 {[%emt 0:02:33]} Nb6 {[%emt 0:05:17]} 15. Nc6 {[%emt 0:05:14]} Nxc6 {[%emt 0:00:48]} 16. Bxc6 {[%emt 0:01:28]} Bb7 {[%emt 0:04:30]} 17. Bxb7 {[%emt 0:02:09]} Rxb7 {[%emt 0:00:10]} 18. Qc6 {[%emt 0:01:31]} Qd5 {[%emt 0:01:24]} 19. Qxd5 {[%emt 0:00:07]} Nxd5 {[%emt 0:01:09]} 20. Nc3 {[%emt 0:03:21]} c6 {[%emt 0:08:53]} 21. Nxd5 {[%emt 0:10:56]} cxd5 {[%emt 0:00:44]} 22. Bd2 {[%emt 0:00:45]} Rc8 {[%emt 0:05:05]} 1/2-1/2

[Event "Niedersachsen-ch A 2024"]
[Site "Verden Aller"]
[Date "2024.01.07"]
[Round "7.24"]
[White "Aden, Keno"]
[Black "Reins, Henning"]
[Result "1-0"]
[ECO "A49"]
[WhiteElo "1832"]
[BlackElo "1950"]
[Annotator "RC"]
[PlyCount "73"]
[EventDate "2024.01.01"]
[EventType "swiss"]
[EventCountry "GER"]
[SourceTitle "playchess.com"]
[Source "ChessBase"]
[SourceQuality "1"]
[TimeControl "40/5400+30:1800+30"]

1. d4 {[%emt 0:00:02]} Nf6 {[%emt 0:00:08]} 2. Nf3 {[%emt 0:00:04]} g6 {[%emt 0:00:09]} 3. g3 {[%emt 0:00:05]} Bg7 {[%emt 0:00:11]} 4. Bg2 {[%emt 0:00:04]} O-O {[%emt 0:00:10]} 5. O-O {[%emt 0:00:04]} d6 {[%emt 0:00:21]} 6. b3 {[%emt 0:01:00]} c5 {[%emt 0:07:08]} 7. Bb2 {[%emt 0:00:21]} cxd4 {[%emt 0:02:20]} 8. Nxd4 {[%emt 0:00:07]} Qb6 {[%emt 0:03:16]} 9. Nd2 {[%emt 0:05:39]} Bd7 {[%emt 0:07:10]} 10. c4 {[%emt 0:10:08]} Nc6 {[%emt 0:02:17]} 11. N2f3 {[%emt 0:04:54]} Rad8 {[%emt 0:17:52]} 12. e3 {[%emt 0:31:25]} Rfe8 {[%emt 0:05:18]} 13. Qe2 {[%emt 0:00:56]} Qa5 {[%emt 0:03:50]} 14. h3 {[%emt 0:11:10]} e5 {[%emt 0:15:43]} 15. Nb5 {[%emt 0:03:41]} e4 {[%emt 0:03:44]} 16. Nfd4 {[%emt 0:01:17]} Bc8 {[%emt 0:02:01]} 17. Nxc6 {[%emt 0:06:34]} bxc6 {[%emt 0:00:48]} 18. Nd4 {[%emt 0:01:58]} Qb6 {[%emt 0:01:26]} 19. Rfd1 {[%emt 0:02:21]} d5 {[%emt 0:02:20]} 20. cxd5 {[%emt 0:04:22]} Rxd5 {[%emt 0:01:16]} 21. Bf1 {[%emt 0:01:25]} Rh5 {[%emt 0:01:04]} 22. Rac1 {[%emt 0:03:43]} Bxh3 {[%emt 0:10:44]} 23. Bxh3 {[%emt 0:00:51]} Rxh3 {[%emt 0:00:02]} 24. Kg2 {[%emt 0:00:20]} Rh5 {[%emt 0:01:35]} 25. Nxc6 {[%emt 0:01:24]} Rc5 {[%emt 0:02:31]} 26. Bd4 {[%emt 0:02:07]} Qxc6 {[%emt 0:05:09]} 27. Rxc5 {[%emt 0:00:08]} Qb7 {[%emt 0:01:35]} 28. Rdc1 {[%emt 0:00:10]} h5 {[%emt 0:00:27]} 29. Rc7 {[%emt 0:00:16]} Qd5 {[%emt 0:00:23]} 30. R1c5 {[%emt 0:00:26]} Qe6 {[%emt 0:00:34]} 31. R5c6 {[%emt 0:00:31]} Qf5 {[%emt 0:00:13]} 32. Rc5 {[%emt 0:06:57]} Nd5 {[%emt 0:00:23]} 33. Bxg7 {[%emt 0:00:29]} Kxg7 {[%emt 0:00:46]} 34. Qb2+ {[%emt 0:01:05]} Re5 {[%emt 0:01:33]} 35. Rxd5 {[%emt 0:00:24]} Qf3+ {[%emt 0:00:20]} 36. Kg1 {[%emt 0:00:19]} Kh6 {[%emt 0:00:45]} 37. Qxe5 {[%emt 0:00:28]} 1-0

[Event "Niedersachsen-ch A 2024"]
[Site "Verden Aller"]
[Date "2024.01.07"]
[Round "7.25"]
[White "Carsten, Juergen"]
[Black "Arndt, Felix"]
[Result "1/2-1/2"]
[ECO "B09"]
[WhiteElo "1749"]
[BlackElo "1901"]
[Annotator "NA RC"]
[PlyCount "51"]
[EventDate "2024.01.01"]
[EventType "swiss"]
[EventCountry "GER"]
[SourceTitle "playchess.com"]
[Source "ChessBase"]
[SourceQuality "1"]
[TimeControl "40/5400+30:1800+30"]

1. e4 {[%emt 0:00:12]} d6 {[%emt 0:00:04]} 2. d4 {[%emt 0:00:29]} Nf6 {[%emt 0:00:11]} 3. Nc3 {[%emt 0:01:08]} c6 {[%emt 0:00:09]} 4. f4 {[%emt 0:00:10]} Bg4 {[%emt 0:01:41]} 5. Nf3 {[%emt 0:01:13]} g6 {[%emt 0:01:50]} 6. Be2 {[%emt 0:04:24]} Bg7 {[%emt 0:00:27]} 7. O-O {[%emt 0:07:06]} O-O {[%emt 0:00:44]} 8. h3 {[%emt 0:05:16]} Bxf3 {[%emt 0:03:08]} 9. Bxf3 {[%emt 0:00:26]} e5 {[%emt 0:06:05]} 10. Be3 {[%emt 0:11:18]} Qc7 {[%emt 0:06:41]} 11. fxe5 {[%emt 0:05:46]} dxe5 {[%emt 0:00:11]} 12. d5 {[%emt 0:03:47]} cxd5 {[%emt 0:02:46]} 13. exd5 {[%emt 0:00:32]} Na6 {[%emt 0:06:39]} 14. d6 {[%emt 0:03:55]} Qd7 {[%emt 0:01:28]} 15. Ne4 {[%emt 0:02:25]} Nxe4 {[%emt 0:05:12]} 16. Bxe4 {[%emt 0:00:29]} Nb4 {[%emt 0:00:19]} 17. c3 {[%emt 0:01:48]} Nc6 {[%emt 0:01:55]} 18. Bd5 {[%emt 0:01:40]} Rad8 {[%emt 0:00:53]} 19. Bc5 {[%emt 0:01:33]} b6 {[%emt 0:04:35]} 20. Ba3 {[%emt 0:00:25]} Na5 {[%emt 0:00:45]} 21. Qf3 {[%emt 0:04:54]} b5 {[%emt 0:04:41]} 22. Qe4 {[%emt 0:02:28]} Rc8 {[%emt 0:01:00]} 23. Rf3 {[%emt 0:01:16]} Nc4 {[%emt 0:06:36]} 24. Rd1 {[%emt 0:00:28]} Nxa3 {[%emt 0:00:33]} 25. bxa3 {[%emt 0:00:11]} Kh8 {[%emt 0:01:32]} 26. Qb4 {[%emt 0:04:50]} 1/2-1/2

[Event "Niedersachsen-ch A 2024"]
[Site "Verden Aller"]
[Date "2024.01.07"]
[Round "7.26"]
[White "Langer, Michael S."]
[Black "Schramm, Kilian"]
[Result "0-1"]
[ECO "A15"]
[WhiteElo "1888"]
[BlackElo "1729"]
[Annotator "NA RC"]
[PlyCount "74"]
[EventDate "2024.01.01"]
[EventType "swiss"]
[EventCountry "GER"]
[SourceTitle "playchess.com"]
[Source "ChessBase"]
[SourceQuality "1"]
[TimeControl "40/5400+30:1800+30"]

1. Nf3 {[%emt 0:00:11]} Nf6 {[%emt 0:00:05]} 2. c4 {[%emt 0:00:20]} b6 {[%emt 0:00:39]} 3. g3 {[%emt 0:00:46]} Bb7 {[%emt 0:00:06]} 4. Bg2 {[%emt 0:00:11]} e6 {[%emt 0:00:07]} 5. O-O {[%emt 0:00:39]} Be7 {[%emt 0:00:05]} 6. d3 {[%emt 0:07:19]} O-O {[%emt 0:01:51]} 7. a3 {[%emt 0:04:13]} c5 {[%emt 0:01:38]} 8. Nbd2 {[%emt 0:02:48]} d5 {[%emt 0:06:00]} 9. Rb1 {[%emt 0:05:59]} Nc6 {[%emt 0:02:30]} 10. Re1 {[%emt 0:05:50]} d4 {[%emt 0:05:57]} 11. Ne5 {[%emt 0:05:09]} Qc7 {[%emt 0:01:28]} 12. Nxc6 {[%emt 0:00:26]} Bxc6 {[%emt 0:00:05]} 13. Bxc6 {[%emt 0:02:39]} Qxc6 {[%emt 0:00:08]} 14. Nf3 {[%emt 0:02:29]} Bd6 {[%emt 0:02:24]} 15. Bg5 {[%emt 0:04:59]} Nd7 {[%emt 0:02:12]} 16. b4 {[%emt 0:03:46]} f6 {[%emt 0:00:37]} 17. b5 {[%emt 0:00:56]} Qb7 {[%emt 0:00:58]} 18. Bd2 {[%emt 0:00:23]} f5 {[%emt 0:06:46]} 19. a4 {[%emt 0:05:08]} Qc7 {[%emt 0:05:39]} 20. e3 {[%emt 0:07:28]} dxe3 {[%emt 0:03:53]} 21. fxe3 {[%emt 0:00:32]} Rf6 {[%emt 0:04:45]} 22. Bc3 {[%emt 0:03:49]} Rg6 {[%emt 0:00:30]} 23. Nh4 {[%emt 0:07:34]} Rg4 {[%emt 0:01:53]} 24. Ng2 {[%emt 0:02:16]} h5 {[%emt 0:04:04]} 25. Qf3 {[%emt 0:05:01]} Rd8 {[%emt 0:00:42]} 26. Kh1 {[%emt 0:00:25]} Be5 {[%emt 0:05:42]} 27. d4 {[%emt 0:05:04]} Bf6 {[%emt 0:00:23]} 28. Nf4 {[%emt 0:00:48]} Kf7 {[%emt 0:01:02]} 29. Rbc1 {[%emt 0:08:13]} Qd6 {[%emt 0:10:15]} 30. Nxh5 {[%emt 0:03:53]} cxd4 {[%emt 0:02:23]} 31. Nxf6 {[%emt 0:00:43]} Nxf6 {[%emt 0:00:32]} 32. Bxd4 {[%emt 0:00:58]} Ne4 {[%emt 0:02:39]} 33. Kg2 {[%emt 0:00:32]} Rh8 {[%emt 0:01:18]} 34. Rh1 {[%emt 0:01:05]} Rh3 {[%emt 0:00:26]} 35. Qd1 {[%emt 0:04:48]} Rgxg3+ {[%emt 0:01:47]} 36. Kf1 {[%emt 0:00:15]} Rf3+ {[%emt 0:00:23]} 37. Ke1 {[%emt 0:00:53]} Nf2 {[%emt 0:02:50]} 0-1

[Event "Niedersachsen-ch A 2024"]
[Site "Verden Aller"]
[Date "2024.01.07"]
[Round "7.27"]
[White "Buecklers, Martin"]
[Black "Hoke, Adrian"]
[Result "0-1"]
[ECO "C54"]
[WhiteElo "1877"]
[BlackElo "1765"]
[Annotator "NA RC"]
[PlyCount "58"]
[EventDate "2024.01.01"]
[EventType "swiss"]
[EventCountry "GER"]
[SourceTitle "playchess.com"]
[Source "ChessBase"]
[SourceQuality "1"]
[TimeControl "40/5400+30:1800+30"]

1. e4 {[%emt 0:00:21]} e5 {[%emt 0:00:46]} 2. Nf3 {[%emt 0:00:06]} Nc6 {[%emt 0:00:12]} 3. Bc4 {[%emt 0:00:06]} Bc5 {[%emt 0:00:55]} 4. c3 {[%emt 0:00:08]} Nf6 {[%emt 0:01:02]} 5. d3 {[%emt 0:00:06]} d6 {[%emt 0:02:38]} 6. Nbd2 {[%emt 0:01:28]} O-O {[%emt 0:01:40]} 7. h3 {[%emt 0:00:58]} a6 {[%emt 0:02:06]} 8. a4 {[%emt 0:06:41]} Be6 {[%emt 0:01:36]} 9. Bxe6 {[%emt 0:00:08]} fxe6 {[%emt 0:00:21]} 10. b4 {[%emt 0:03:15]} Ba7 {[%emt 0:03:03]} 11. O-O {[%emt 0:02:59]} Qd7 {[%emt 0:05:15]} 12. Qb3 {[%emt 0:13:34]} Nh5 {[%emt 0:08:29]} 13. Nc4 {[%emt 0:09:48]} Nf4 {[%emt 0:04:24]} 14. Bxf4 {[%emt 0:00:57]} Rxf4 {[%emt 0:00:13]} 15. b5 {[%emt 0:01:08]} Ne7 {[%emt 0:03:32]} 16. b6 {[%emt 0:02:34]} cxb6 {[%emt 0:04:13]} 17. Nxb6 {[%emt 0:00:29]} Bxb6 {[%emt 0:00:05]} 18. Qxb6 {[%emt 0:00:10]} Nc8 {[%emt 0:04:53]} 19. Qe3 {[%emt 0:08:35]} Rf7 {[%emt 0:03:55]} 20. Rfb1 {[%emt 0:01:09]} b6 {[%emt 0:02:42]} 21. Rb4 {[%emt 0:04:30]} Ra7 {[%emt 0:06:13]} 22. Rab1 {[%emt 0:04:20]} Qc6 {[%emt 0:05:32]} 23. d4 {[%emt 0:05:22]} exd4 {[%emt 0:01:30]} 24. Nxd4 {[%emt 0:09:16]} Qe8 {[%emt 0:04:00]} 25. c4 {[%emt 0:00:12]} Rac7 {[%emt 0:03:33]} 26. Qe2 {[%emt 0:05:35]} Qd7 {[%emt 0:03:34]} 27. Qg4 {[%emt 0:20:05]} a5 {[%emt 0:04:15]} 28. R4b3 {[%emt 0:00:00]} Rxc4 {[%emt 0:01:09]} 29. Nxe6 {[%emt 0:00:00]} h5 {[%emt 0:02:35]} 0-1

[Event "Niedersachsen-ch A 2024"]
[Site "Verden Aller"]
[Date "2024.01.07"]
[Round "7.28"]
[White "Schiller, Jan-Hendrik"]
[Black "Rausch, Darius"]
[Result "1-0"]
[ECO "E61"]
[WhiteElo "1881"]
[BlackElo "1742"]
[Annotator "NA RC"]
[PlyCount "75"]
[EventDate "2024.01.01"]
[EventType "swiss"]
[EventCountry "GER"]
[SourceTitle "playchess.com"]
[Source "ChessBase"]
[SourceQuality "1"]
[TimeControl "40/5400+30:1800+30"]

1. d4 {[%emt 0:02:42]} Nf6 {[%emt 0:00:05]} 2. Nf3 {[%emt 0:01:20]} g6 {[%emt 0:00:04]} 3. c4 {[%emt 0:00:49]} Bg7 {[%emt 0:00:05]} 4. e3 {[%emt 0:00:18]} O-O {[%emt 0:00:10]} 5. Be2 {[%emt 0:00:37]} d6 {[%emt 0:00:19]} 6. Nc3 {[%emt 0:01:12]} Nbd7 {[%emt 0:00:26]} 7. O-O {[%emt 0:01:33]} e5 {[%emt 0:00:06]} 8. Qc2 {[%emt 0:00:42]} Re8 {[%emt 0:03:12]} 9. b4 {[%emt 0:00:37]} e4 {[%emt 0:01:26]} 10. Nd2 {[%emt 0:00:16]} Qe7 {[%emt 0:00:24]} 11. a4 {[%emt 0:01:08]} Nf8 {[%emt 0:00:25]} 12. a5 {[%emt 0:01:07]} h5 {[%emt 0:03:20]} 13. Bb2 {[%emt 0:02:11]} N8h7 {[%emt 0:02:06]} 14. Rfc1 {[%emt 0:00:52]} Bf5 {[%emt 0:07:13]} 15. a6 {[%emt 0:05:43]} b6 {[%emt 0:08:00]} 16. Nd5 {[%emt 0:05:27]} Nxd5 {[%emt 0:01:59]} 17. cxd5 {[%emt 0:00:12]} Nf6 {[%emt 0:12:22]} 18. Bb5 {[%emt 0:10:48]} Ng4 {[%emt 0:20:52]} 19. Bxe8 {[%emt 0:03:23]} Rxe8 {[%emt 0:01:22]} 20. h3 {[%emt 0:01:25]} Qh4 {[%emt 0:01:35]} 21. hxg4 {[%emt 0:01:37]} hxg4 {[%emt 0:00:12]} 22. g3 {[%emt 0:01:06]} Qh3 {[%emt 0:00:44]} 23. Qc4 {[%emt 0:00:21]} Bf6 {[%emt 0:01:27]} 24. Qf1 {[%emt 0:00:23]} Qh5 {[%emt 0:00:19]} 25. Rxc7 {[%emt 0:00:22]} Kg7 {[%emt 0:00:15]} 26. Rxa7 {[%emt 0:00:22]} Rh8 {[%emt 0:00:15]} 27. Qg2 {[%emt 0:00:09]} Bg5 {[%emt 0:00:23]} 28. Rc1 {[%emt 0:01:16]} Qh6 {[%emt 0:00:45]} 29. Nf1 {[%emt 0:00:19]} Kf6 {[%emt 0:01:16]} 30. Rcc7 {[%emt 0:00:18]} Rh7 {[%emt 0:00:29]} 31. Rab7 {[%emt 0:00:25]} b5 {[%emt 0:00:21]} 32. a7 {[%emt 0:00:10]} Bxe3 {[%emt 0:01:16]} 33. fxe3 {[%emt 0:00:38]} Kg5 {[%emt 0:00:21]} 34. a8=Q {[%emt 0:00:23]} f6 {[%emt 0:00:17]} 35. Rxh7 {[%emt 0:00:19]} Qxh7 {[%emt 0:00:35]} 36. Rxh7 {[%emt 0:00:32]} Bc8 {[%emt 0:00:10]} 37. Qxc8 {[%emt 0:00:31]} f5 {[%emt 0:00:05]} 38. Qd8# {[%emt 0:01:19]} 1-0

[Event "Niedersachsen-ch A 2024"]
[Site "Verden Aller"]
[Date "2024.01.07"]
[Round "7.30"]
[White "Bisa, Gani"]
[Black "Stummeyer, Dieter"]
[Result "0-1"]
[ECO "D37"]
[WhiteElo "1931"]
[BlackElo "1804"]
[Annotator "NA RC"]
[PlyCount "44"]
[EventDate "2024.01.01"]
[EventType "swiss"]
[EventCountry "GER"]
[SourceTitle "playchess.com"]
[Source "ChessBase"]
[SourceQuality "1"]
[TimeControl "40/5400+30:1800+30"]

1. d4 {[%emt 0:00:04]} Nf6 {[%emt 0:00:19]} 2. c4 {[%emt 0:00:09]} e6 {[%emt 0:00:07]} 3. Nf3 {[%emt 0:00:06]} d5 {[%emt 0:00:08]} 4. Nc3 {[%emt 0:00:16]} Be7 {[%emt 0:01:04]} 5. a4 {[%emt 0:00:28]} Nbd7 {[%emt 0:01:42]} 6. g3 {[%emt 0:00:25]} c5 {[%emt 0:00:23]} 7. cxd5 {[%emt 0:05:31]} exd5 {[%emt 0:00:47]} 8. dxc5 {[%emt 0:00:28]} Nxc5 {[%emt 0:00:23]} 9. Bg2 {[%emt 0:01:49]} O-O {[%emt 0:00:59]} 10. O-O {[%emt 0:00:36]} Bf5 {[%emt 0:02:35]} 11. Bg5 {[%emt 0:03:46]} Nce4 {[%emt 0:03:01]} 12. Qb3 {[%emt 0:10:01]} Qd7 {[%emt 0:07:18]} 13. Rad1 {[%emt 0:03:13]} Nxc3 {[%emt 0:00:31]} 14. bxc3 {[%emt 0:01:18]} Be6 {[%emt 0:03:13]} 15. Nd4 {[%emt 0:02:13]} Rac8 {[%emt 0:00:56]} 16. Rc1 {[%emt 0:13:16]} Rc4 {[%emt 0:01:20]} 17. Rfd1 {[%emt 0:01:32]} Rfc8 {[%emt 0:02:39]} 18. Rd3 {[%emt 0:03:11]} h6 {[%emt 0:03:39]} 19. Bd2 {[%emt 0:01:14]} Ne4 {[%emt 0:01:30]} 20. Be1 {[%emt 0:02:31]} Nc5 {[%emt 0:00:47]} 21. Qb5 {[%emt 0:07:24]} Nxd3 {[%emt 0:02:38]} 22. Rb1 {[%emt 0:05:05]} Nxe1 {[%emt 1:05:31]} 0-1

[Event "Niedersachsen-ch A 2024"]
[Site "Verden Aller"]
[Date "2024.01.07"]
[Round "7.32"]
[White "Zweigait, Leon"]
[Black "Vormann, Dirk"]
[Result "1/2-1/2"]
[ECO "C42"]
[WhiteElo "1526"]
[BlackElo "1854"]
[Annotator "NA RC"]
[PlyCount "44"]
[EventDate "2024.01.01"]
[EventType "swiss"]
[EventCountry "GER"]
[SourceTitle "playchess.com"]
[Source "ChessBase"]
[SourceQuality "1"]
[TimeControl "40/5400+30:1800+30"]

1. e4 {[%emt 0:00:03]} e5 {[%emt 0:00:08]} 2. Nf3 {[%emt 0:00:15]} Nf6 {[%emt 0:00:04]} 3. Nxe5 {[%emt 0:00:33]} d6 {[%emt 0:00:05]} 4. Nf3 {[%emt 0:00:25]} Nxe4 {[%emt 0:00:04]} 5. Bc4 {[%emt 0:00:12]} Be7 {[%emt 0:01:19]} 6. O-O {[%emt 0:00:09]} O-O {[%emt 0:00:25]} 7. Re1 {[%emt 0:00:03]} Nc5 {[%emt 0:04:12]} 8. d4 {[%emt 0:00:24]} Ncd7 {[%emt 0:00:49]} 9. Qe2 {[%emt 0:00:14]} Bf6 {[%emt 0:00:20]} 10. Bf4 {[%emt 0:00:34]} Nb6 {[%emt 0:00:22]} 11. Bb3 {[%emt 0:00:16]} Nc6 {[%emt 0:01:38]} 12. c3 {[%emt 0:00:11]} d5 {[%emt 0:00:42]} 13. Qd3 {[%emt 0:01:01]} g6 {[%emt 0:00:40]} 14. Nbd2 {[%emt 0:00:15]} Bf5 {[%emt 0:00:14]} 15. Qe2 {[%emt 0:00:13]} Na5 {[%emt 0:04:06]} 16. Bh6 {[%emt 0:02:06]} Re8 {[%emt 0:01:09]} 17. Qxe8+ {[%emt 0:02:18]} Qxe8 {[%emt 0:00:05]} 18. Rxe8+ {[%emt 0:00:06]} Rxe8 {[%emt 0:00:04]} 19. Bf4 {[%emt 0:00:27]} c6 {[%emt 0:00:21]} 20. Bc7 {[%emt 0:03:52]} Nxb3 {[%emt 0:03:34]} 21. axb3 {[%emt 0:00:15]} Nc8 {[%emt 0:00:05]} 22. Re1 {[%emt 0:03:24]} Rxe1+ {[%emt 0:00:21]} 1/2-1/2